Cogmind - Beta 10.2 --- EXPLORER MODE // 2021.08.22 @ 17:24:18 // Winter2019/RPGLIKE Player: UdenTiso Result: Destroyed by H-88 Terminator with KE Penetrator Performance ------------- Evolutions (8) 4000 Regions Visited (13) 2600 Robots Destroyed (222) 1110 Value Destroyed (8002) 8002 Prototype IDs (19) 380 Alien Tech Used (0) 0 Bonus (812) 812 TOTAL SCORE: 16904 Bonus ------- High Alert Combat Kills 548 Follower Combat Kills 372 Met Data Miner 300 Friendly Fire -408 Cogmind --------- Core Integrity 0/1700 Matter 400/400 Energy 756/830 System Corruption 1% Temperature Cool (34) Movement Hovering (110) Ox1 Location -2/Research Parts ------- > --- POWER (3) -------- Cooled Ion Engine Cooled Ion Engine Light Antimatter Reactor > --- PROPULSION (5) --- Aerolev Unit Cooled Aerolev Unit Combat Airjet Combat Gravmag System Improved Antigrav System > --- UTILITY (12) ----- Improved Cryofiber Web Advanced Cooling System Compact Battery Advanced Sensor Array Improved Terrain Scanner Terrain Scan Processor Improved Armor Integrity Analyzer Improved Particle Charger Improved Kinecellerator Layered Heavy Armor Plating Improved Integration Mediator > --- WEAPON (4) ------- Enhanced Quantum Rifle Neutron Cannon Nova Cannon Enhanced Nova Cannon > --- INVENTORY (5) ---- Improved Gravmag System Improved Antigrav System Tesla Rifle Improved Proton Missile Launcher Micro-nuke Launcher Peak State ------------ > --- POWER ------------ Cooled Ion Engine Cooled Ion Engine Light Antimatter Reactor > --- PROPULSION ------- Aerolev Unit Cooled Aerolev Unit Combat Airjet Combat Gravmag System Improved Antigrav System > --- UTILITY ---------- Improved Cryofiber Web Advanced Cooling System Compact Battery Advanced Sensor Array Improved Terrain Scanner Terrain Scan Processor Improved Armor Integrity Analyzer Improved Particle Charger Improved Kinecellerator Layered Heavy Armor Plating Improved Integration Mediator > --- WEAPON ----------- Enhanced Quantum Rifle Neutron Cannon Nova Cannon Enhanced Nova Cannon > --- INVENTORY -------- Improved Gravmag System Improved Antigrav System Tesla Rifle Improved Proton Missile Launcher Micro-nuke Launcher [Rating: 130] Favorites ----------- Power Cooled Ion Engine Engine Cooled Ion Engine Reactor Light Antimatter Reactor Propulsion Improved Hover Unit Treads Light Treads Leg Aluminum Leg Hover Unit Improved Hover Unit Flight Unit Flight Unit Utility Improved Terrain Scanner Device Improved Terrain Scanner Storage Compact Battery Processor Terrain Scan Processor Protection Improved Utility Shielding Weapon Advanced Beam Cannon Energy Gun Tesla Rifle Energy Cannon Advanced Beam Cannon Launcher Rocket Launcher Special Weapon Remote Datajack Slashing Weapon Mining Claw Build | -11 -10 -9 -8 -7 -7 -7 -6 -6 -5 -4 -4 -3 -2 ------- Run | Scr Mat Mat Mat Fac Low Dat Pro Fac Fac Fac Ext Res Res Slots Evolved 20 | . 6 5 2 1 . . 1 1 2 . 1 . 1 Power 2 | . . 1 . . . . . . . . 1 . . Propulsion 4 | . 3 . 1 . . . . . . . . . . Utility 11 | . 2 3 1 1 . . 1 1 1 . . . 1 Weapon 3 | . 1 1 . . . . . . 1 . . . . Parts Attached 121 | 5 13 33 15 6 . . 8 14 14 . 3 5 5 Power 12 | 1 1 5 4 . . . . . . . 1 . . Engine 11 | 1 1 5 4 . . . . . . . . . . Core . | . . . . . . . . . . . . . . Reactor 1 | . . . . . . . . . . . 1 . . Propulsion 25 | 2 6 6 3 . . . 1 4 1 . . 1 1 Treads 1 | 1 . . . . . . . . . . . . . Leg 2 | 1 1 . . . . . . . . . . . . Wheel . | . . . . . . . . . . . . . . Hover 21 | . 4 6 3 . . . 1 4 1 . . 1 1 Flight 1 | . 1 . . . . . . . . . . . . Utility 39 | 1 4 8 5 4 . . 2 6 6 . 1 1 1 Device 18 | . . 3 3 2 . . 1 4 4 . 1 . . Storage 3 | . 2 . 1 . . . . . . . . . . Processor 4 | 1 . 2 . . . . . . . . . . 1 Hackware . | . . . . . . . . . . . . . . Protection 14 | . 2 3 1 2 . . 1 2 2 . . 1 . Artifact . | . . . . . . . . . . . . . . Weapon 45 | 1 2 14 3 2 . . 5 4 7 . 1 3 3 Energy Gun 10 | 1 . 2 . . . . . 3 3 . . . 1 Energy Cannon 25 | . . 10 3 1 . . 3 1 3 . . 2 2 Ballistic Gun . | . . . . . . . . . . . . . . Ballistic Cannon . | . . . . . . . . . . . . . . Launcher 8 | . 1 2 . . . . 2 . 1 . 1 1 . Special Weapon 1 | . . . . 1 . . . . . . . . . Impact Weapon . | . . . . . . . . . . . . . . Slashing Weapon 1 | . 1 . . . . . . . . . . . . Piercing Weapon . | . . . . . . . . . . . . . . Special Melee Weapon . | . . . . . . . . . . . . . . Unidentified Prototypes 5 | . . 2 2 . . . . 1 . . . . . Parts Lost 1 | . . . . . . . . . . . . 1 . Power . | . . . . . . . . . . . . . . Propulsion . | . . . . . . . . . . . . . . Utility 1 | . . . . . . . . . . . . 1 . Weapon . | . . . . . . . . . . . . . . Highest Loss Streak 1 | . . . . . . . . . . . . 1 . Average Slot Usage (%) 97 | . 86 97 99 99 100 100 100 99 99 100 99 95 94 Engine 11 | . 15 13 11 11 11 11 10 10 9 9 8 8 8 Leg 1 | . 11 . . . . . . . . . . . . Hover 23 | . 13 27 30 27 27 27 26 25 23 22 21 21 20 Device 19 | . . 9 17 21 22 22 25 29 28 31 30 30 29 Storage 6 | . 6 12 5 5 5 5 5 5 4 4 4 4 4 Processor 6 | . 15 6 5 5 5 5 5 5 4 4 4 4 6 Protection 7 | . 3 4 6 11 11 11 10 10 9 9 8 4 4 Energy Gun 3 | . 15 2 . . . . . 2 4 4 4 4 4 Energy Cannon 11 | . . 12 17 15 16 16 14 12 13 13 11 10 12 Naked Turns . | . . . . . . . . . . . . . . Heaviest Build 106 | 5 19 35 37 43 43 43 49 56 72 72 86 103 106 Greatest Support 105 | 20 37 46 54 51 51 51 51 78 92 92 92 100 105 Greatest Overweight (x) 2 | . 2 1 . . . . . . . . . 1 1 Average Overweight (x) . | . . . . . . . . . . . . . . Largest Inventory Capacity 5 | . 3 3 4 4 4 4 4 4 4 4 5 5 5 Average Capacity 3 | . 1 3 3 4 4 4 4 4 4 4 4 5 5 Most Carried 5 | . 3 3 4 4 4 4 4 4 4 3 4 5 5 Average Carried 3 | . 1 2 3 3 4 4 3 3 3 3 3 4 4 Final Capacity 5 | . 3 3 4 4 4 4 4 4 4 4 5 5 5 Final Carried 5 | . 3 3 4 4 4 4 3 4 3 3 4 5 5 Class Distribution -------------------- 54% | Hacker-Scout 20% | Hacker-Mutant 10% | Generator-Scout 7% | Generator-Gunner 5% | Hacker-Skirmisher Dominant Class ---------------- Hacker-Mutant | -10/Materials Hacker-Mutant | -9/Materials Hacker-Scout | -8/Materials Hacker-Scout | -7/Factory Hacker-Scout | -7/Lower Caves Hacker-Scout | -7/Data Miner Hacker-Scout | -6/Proximity Caves Hacker-Scout | -6/Factory Hacker-Scout | -5/Factory Hacker-Scout | -4/Factory Generator-Scout | -4/Extension Generator-Gunner | -3/Research Generator-Scout | -2/Research Resources | -11 -10 -9 -8 -7 -7 -7 -6 -6 -5 -4 -4 -3 -2 ----------- Run | Scr Mat Mat Mat Fac Low Dat Pro Fac Fac Fac Ext Res Res Matter Collected 1861 | 250 121 399 120 100 . . 179 102 71 10 109 385 15 Remotely . | . . . . . . . . . . . . . . Salvage Created 8854 | 70 332 1828 1378 302 42 . 131 272 1491 10 662 878 1458 Parts 447 | 1 21 107 69 24 . . 10 9 56 . 34 42 74 Haulers Intercepted 4 | . . 2 2 . . . . . . . . . . Recyclers Shooed 3 | . . 1 . . . . . 1 . . . . 1 Parts Field Recycled . | . . . . . . . . . . . . . . Retrieved Matter . | . . . . . . . . . . . . . . Parts Self-Destructed . | . . . . . . . . . . . . . . Prevented . | . . . . . . . . . . . . . . Kills | -11 -10 -9 -8 -7 -7 -7 -6 -6 -5 -4 -4 -3 -2 ------- Run | Scr Mat Mat Mat Fac Low Dat Pro Fac Fac Fac Ext Res Res Combat Hostiles Destroyed 142 | . 6 28 23 6 1 . 5 2 25 . 13 14 19 Guns 27 | . 5 12 . . . . . 1 3 . 2 2 2 Cannons 94 | . . 12 23 5 1 . 4 1 17 . 7 8 16 AOE 15 | . . 4 . . . . 1 . 2 . 3 4 1 Classes Destroyed 15 | 1 3 6 1 2 . . 1 . . . . . 1 Worker 18 | . . 3 1 5 . . . . 1 . 5 2 1 Builder 14 | . . 4 1 . . . . . . . 3 3 3 Tunneler 2 | . . . 1 . . . . . . . . . 1 Hauler 4 | . . 2 2 . . . . . . . . . . Recycler 14 | 1 1 6 2 1 . . . 1 . . 1 . 1 Carrier 1 | . . . . . . . . . . . . . 1 Operator 7 | . . 3 . . . . . 2 . 1 . 1 . Watcher 19 | . 3 5 3 . . . . . 2 . 2 2 2 Swarmer 33 | . 2 7 10 . 1 . 2 . 4 . . 4 3 Grunt 54 | . 4 12 7 2 . . . 1 14 . 8 2 4 Duelist 4 | . . 1 1 . . . . . . . . 1 1 Sentry 26 | . . 8 5 2 . . 2 . 2 . 2 2 3 Hunter 11 | . . . . 1 . . . . 2 . 1 4 3 Programmer 9 | . . . . 1 . . . 1 2 . . . 5 Behemoth 5 | . . . . . . . 1 . 1 . 2 1 . Thug 1 | . . . . . . . . . 1 . . . . Best Kill Streak 22 | 1 3 7 11 6 1 . 4 1 7 1 22 14 7 Combat Bots Only 7 | . 2 5 6 2 1 . 4 1 7 . 6 5 6 Max Kills in Single Turn 3 | 1 1 3 2 1 1 . 1 1 2 1 3 3 2 Gunslinging . | . . . . . . . . . . . . . . Exploded 2 | . . 2 . . . . 1 . 1 . 2 2 1 Melee . | . . . . . . . . . . . . . . Uniques/NPCs Destroyed . | . . . . . . . . . . . . . . Combat | -11 -10 -9 -8 -7 -7 -7 -6 -6 -5 -4 -4 -3 -2 -------- Run | Scr Mat Mat Mat Fac Low Dat Pro Fac Fac Fac Ext Res Res Damage Taken 7478 | . 423 610 348 204 17 . 509 114 1007 . 1111 1207 1928 Core 5063 | . 378 453 244 137 9 . 301 64 666 . 709 754 1348 Absorbed by Shields 87 | . . . . . . . . . . . 87 . . Redirected to Core 4021 | . 159 396 209 116 9 . 268 55 540 . 606 727 936 Core Remaining (%) 68 | 100 37 87 64 . . . 100 94 91 . 18 23 . Volleys Fired 393 | 4 33 103 51 23 2 . 16 16 46 1 28 29 41 Largest 4 | 1 2 3 3 3 3 . 3 3 4 4 4 4 4 Hottest 417 | 40 73 204 204 204 204 . 204 238 359 343 343 343 417 Shots Fired 1070 | 4 34 178 153 64 6 . 48 43 167 4 107 110 152 Gun 256 | 4 33 68 . . . . . 10 42 1 28 29 41 Cannon 775 | . . 107 153 62 6 . 39 33 122 3 65 74 111 Launcher 37 | . 1 3 . . . . 9 . 3 . 14 7 . Special 2 | . . . . 2 . . . . . . . . . Kinetic . | . . . . . . . . . . . . . . Thermal 840 | . . 114 153 62 6 . 39 43 164 3 65 74 117 Explosive 37 | . 1 3 . . . . 9 . 3 . 14 7 . Electromagnetic 191 | 4 33 61 . . . . . . . 1 28 29 35 Robot Hit Streak 68 | 4 17 29 22 22 3 . 22 28 68 12 24 25 67 Robot Miss Streak 4 | . 1 2 4 1 1 . 1 1 3 . 1 1 1 Penetration Max . | . . . . . . . . . . . . . . Secondary Targets . | . . . . . . . . . . . . . . Shots Hit Robots 796 | 4 29 128 99 54 3 . 40 34 125 3 69 82 126 Core Hits 373 | 2 13 64 41 19 1 . 23 10 48 1 58 41 52 Critical Hits 40 | . . 7 9 3 . . 5 4 5 . 1 2 4 Critical Kills 15 | . . 3 4 1 . . 2 1 2 . . 1 1 Critical Parts Destroyed 20 | . . 4 5 2 . . 1 3 2 . . 1 2 Melee Attacks 8 | . 8 . . . . . . . . . . . . Impact . | . . . . . . . . . . . . . . Slashing 8 | . 8 . . . . . . . . . . . . Piercing . | . . . . . . . . . . . . . . Sneak Attacks . | . . . . . . . . . . . . . . Combat Hostiles . | . . . . . . . . . . . . . . Follow-up Attacks . | . . . . . . . . . . . . . . Damage Inflicted 27508 | 52 522 2738 1990 1059 20 . 1399 661 4355 162 4860 3769 5921 Guns 4838 | 52 455 777 . . . . . 218 980 39 689 681 947 Cannons 16779 | . . 1268 1967 1059 20 . 716 414 2946 79 1890 1920 4500 Explosions 5551 | . 65 519 . . . . 683 . 385 44 2241 1168 446 Melee . | . . . . . . . . . . . . . . Ramming 340 | . 2 174 23 . . . . 29 44 . 40 . 28 Kinetic . | . . . . . . . . . . . . . . Thermal 19452 | . 65 1600 1967 1059 20 . 716 632 4065 123 1890 2149 5166 Explosive 4384 | . . 275 . . . . 683 . 246 . 2241 939 . Electromagnetic 3332 | 52 455 689 . . . . . . . 39 689 681 727 Impact . | . . . . . . . . . . . . . . Slashing . | . . . . . . . . . . . . . . Piercing . | . . . . . . . . . . . . . . Highest Corruption 2 | . . 2 . . . . . 2 1 . . . 1 Average Corruption 1 | . . 2 . . . . . 2 1 . . . 1 Corruption Purged . | . . . . . . . . . . . . . . Effects 19 | . . 14 . . . . . 4 . . . . 1 Message Errors 6 | . . 4 . . . . . 2 . . . . . Heat Flow Errors 2 | . . 1 . . . . . 1 . . . . . Energy Discharges 1 | . . . . . . . . 1 . . . . . Data Loss (minor) 2 | . . 2 . . . . . . . . . . . Targeting Errors 7 | . . 7 . . . . . . . . . . . Weapon Failures 1 | . . . . . . . . . . . . . 1 Overload Shots . | . . . . . . . . . . . . . . Overflow Damage 1018 | . 25 37 19 6 . . . 7 74 47 203 184 416 Projectiles 732 | . . 33 19 6 . . . . 70 13 89 118 384 Explosions 262 | . 25 1 . . . . . . . 34 104 66 32 Melee 24 | . . 3 . . . . . 7 4 . 10 . . Knockbacks 1 | . . 1 . . . . . . . . . . . Impact 1 | . . 1 . . . . . . . . . . . Kinetic . | . . . . . . . . . . . . . . Secondary . | . . . . . . . . . . . . . . Self-Inflicted Damage 488 | . . 136 11 . . . . 14 159 . 20 84 64 Shots 9 | . . 3 . . . . . . 2 . . 3 1 Rammed 20 | . 2 11 2 . . . . 1 1 . 1 . 2 Targets Rammed 20 | . 2 11 2 . . . . 1 1 . 1 . 2 Kicked . | . . . . . . . . . . . . . . Crushed . | . . . . . . . . . . . . . . Highest Temperature 659 | . 81 545 504 27 . . . . 102 . 25 288 659 Average Temperature 141 | . 32 137 149 17 . . . . 34 . 15 100 230 Received Heat Transfer 1773 | . 111 318 171 84 . . 186 36 267 . 201 174 225 Effects 16 | . . 11 1 . . . . . . . . 1 3 Shutdowns 3 | . . 3 . . . . . . . . . . . Energy Bleed 1 | . . 1 . . . . . . . . . . . Interference 5 | . . 2 . . . . . . . . . 1 2 Matter Decay 1 | . . 1 . . . . . . . . . . . Short Circuit 1 | . . 1 . . . . . . . . . . . Damage (minor) 1 | . . . 1 . . . . . . . . . . Damage (major) 3 | . . 3 . . . . . . . . . . . Damage (core) 1 | . . . . . . . . . . . . . 1 Siege Activations . | . . . . . . . . . . . . . . Robots Corrupted 1 | . 1 . . . . . . . . . . . . Combat Hostiles 1 | . 1 . . . . . . . . . . . . Parts Fried 10 | . 5 2 . . . . . . . . 1 1 1 Impact Corruptions 4 | . . 1 . . . . . 1 1 . 1 . . Robots Melted 5 | . . . . 1 . . . . 3 . 1 . . Combat Hostiles 5 | . . . . 1 . . . . 3 . 1 . . Parts Melted 50 | . . 5 6 5 . . 1 6 13 . 3 6 5 Heat Transferred 24433 | . 100 2816 3552 1850 37 . 1221 1036 5463 150 2225 2411 3572 Parts Sabotaged . | . . . . . . . . . . . . . . Parts Stolen . | . . . . . . . . . . . . . . Parts Stripped . | . . . . . . . . . . . . . . Power Chain Reactions 9 | . 2 3 . . . . . . . 1 . 1 2 Missiles Intercepted . | . . . . . . . . . . . . . . Alert | -11 -10 -9 -8 -7 -7 -7 -6 -6 -5 -4 -4 -3 -2 ------- Run | Scr Mat Mat Mat Fac Low Dat Pro Fac Fac Fac Ext Res Res Peak Influence 785 | 5 180 556 519 246 . . . 113 407 142 658 785 654 Initial 256 | . 2 . 99 171 . . . 55 . 121 51 256 225 Average 204 | . 72 279 205 150 . . . 44 162 139 269 500 324 Maximum Alert Level 3 | . . 2 2 1 . . . . 2 . 2 3 2 Low Security (%) 53 | 100 100 21 66 64 . . . 100 52 100 60 . 8 Level 1 33 | . . 62 20 35 . . . . 44 . 16 43 60 Level 2 10 | . . 16 13 . . . . . 3 . 23 26 30 Level 3 1 | . . . . . . . . . . . . 30 . Level 4 . | . . . . . . . . . . . . . . Level 5 . | . . . . . . . . . . . . . . High Security . | . . . . . . . . . . . . . . Max Security . | . . . . . . . . . . . . . . Squads Dispatched 28 | . . 7 2 2 . . . 1 5 . 2 2 7 Investigation 5 | . . 2 . . . . . . 3 . . . . Extermination 5 | . . . . 1 . . . 1 1 . . . 2 Reinforcement 12 | . . 5 2 1 . . . . 1 . 2 1 . Assault 2 | . . . . . . . . . . . . 1 1 Garrison 4 | . . . . . . . . . . . . . 4 Intercept . | . . . . . . . . . . . . . . Construction Impeded 4 | . . 1 . . . . . . 1 . 1 1 . Haulers Reinforced . | . . . . . . . . . . . . . . Stealth | -11 -10 -9 -8 -7 -7 -7 -6 -6 -5 -4 -4 -3 -2 --------- Run | Scr Mat Mat Mat Fac Low Dat Pro Fac Fac Fac Ext Res Res Distress Signals 10 | . 1 3 3 . . . . . . . . 2 1 Communications Jammed . | . . . . . . . . . . . . . . Distress Signals . | . . . . . . . . . . . . . . Times Spotted 203 | . 8 57 28 8 2 . 6 3 29 . 21 18 23 Peak Tracking Total 7 | . 3 7 3 2 3 . 3 1 6 . 5 6 7 Tactical Retreats 11 | . 1 8 1 . 1 . . . . . . . . Traps | -11 -10 -9 -8 -7 -7 -7 -6 -6 -5 -4 -4 -3 -2 ------- Run | Scr Mat Mat Mat Fac Low Dat Pro Fac Fac Fac Ext Res Res Traps Triggered 14 | . 1 3 1 1 . . 1 3 2 . 2 . . Indirectly . | . . . . . . . . . . . . . . Trap Hack Attempts . | . . . . . . . . . . . . . . Triggered . | . . . . . . . . . . . . . . Disarmed . | . . . . . . . . . . . . . . Reprogrammed . | . . . . . . . . . . . . . . Reused . | . . . . . . . . . . . . . . Traps Extracted . | . . . . . . . . . . . . . . Installed . | . . . . . . . . . . . . . . Triggered . | . . . . . . . . . . . . . . Machines | -11 -10 -9 -8 -7 -7 -7 -6 -6 -5 -4 -4 -3 -2 ---------- Run | Scr Mat Mat Mat Fac Low Dat Pro Fac Fac Fac Ext Res Res Machines Disabled 18 | . 1 1 3 . . . . 2 7 2 1 1 . Max in Single Turn 4 | . 1 1 1 . . . . 2 4 2 1 1 . Machines Sabotaged . | . . . . . . . . . . . . . . Garrisons Compromised . | . . . . . . . . . . . . . . Overloaded Fab Kills . | . . . . . . . . . . . . . . Fab Network Shutdowns . | . . . . . . . . . . . . . . Hacking | -11 -10 -9 -8 -7 -7 -7 -6 -6 -5 -4 -4 -3 -2 --------- Run | Scr Mat Mat Mat Fac Low Dat Pro Fac Fac Fac Ext Res Res Machines Accessed 30 | . 2 4 3 1 . 4 1 7 5 1 . . 2 Terminals 11 | . 1 1 1 1 . . . 3 3 . . . 1 Fabricators 3 | . . . . . . . 1 2 . . . . . Repair Stations 6 | . 1 1 . . . . . 2 2 . . . . Recycling Units . | . . . . . . . . . . . . . . Scanalyzers 5 | . . 2 2 . . . . . . . . . 1 Garrison Access 1 | . . . . . . . . . . 1 . . . Total Hacks 96 | . 2 20 11 2 . 27 2 13 12 3 . . 4 Successful 79 | . 1 17 11 2 . 27 2 8 9 . . . 2 Failed 17 | . 1 3 . . . . . 5 3 3 . . 2 Catastrophic . | . . . . . . . . . . . . . . Database Lockouts . | . . . . . . . . . . . . . . Manual 5 | . . . . . . 2 1 . 1 . 1 . . Terminals 22 | . 1 4 1 2 . . . 5 7 . . . 2 Fabricators 5 | . . . . . . . 2 3 . . . . . Repair Stations 14 | . 1 3 . . . . . 5 5 . . . . Recycling Units . | . . . . . . . . . . . . . . Scanalyzers 25 | . . 13 10 . . . . . . . . . 2 Garrison Access 3 | . . . . . . . . . . 3 . . . Terminal Hacks 41 | . 1 2 1 2 . 27 . 3 5 . . . . Record 15 | . 1 . . 2 . 11 . . 1 . . . . Part Schematic 6 | . . . . . . 6 . . . . . . . Robot Schematic 7 | . . . . . . 7 . . . . . . . Robot Analysis 1 | . . . . . . . . . 1 . . . . Prototype ID Bank 5 | . . 1 . . . 3 . 1 . . . . . Level Access Points 1 | . . 1 . . . . . . . . . . . Fabricator Index 1 | . . . . . . . . 1 . . . . . Transport Status 1 | . . . 1 . . . . . . . . . . Hauler Manifests 2 | . . . . . . . . . 2 . . . . Registered Components 1 | . . . . . . . . . 1 . . . . Registered Prototypes 1 | . . . . . . . . 1 . . . . . Fabricator Hacks 3 | . . . . . . . 2 1 . . . . . Load Schematic 2 | . . . . . . . 1 1 . . . . . Build 1 | . . . . . . . 1 . . . . . . Repair Station Hacks 10 | . . 2 . . . . . 4 4 . . . . Scan Component 5 | . . 1 . . . . . 2 2 . . . . Repair 5 | . . 1 . . . . . 2 2 . . . . Recycling Unit Hacks . | . . . . . . . . . . . . . . Scanalyzer 25 | . . 13 10 . . . . . . . . . 2 Insert Component 11 | . . 5 5 . . . . . . . . . 1 Analyze 14 | . . 8 5 . . . . . . . . . 1 Garrison Access Hacks . | . . . . . . . . . . . . . . Unauthorized Hacks . | . . . . . . . . . . . . . . Terminals . | . . . . . . . . . . . . . . Fabricators . | . . . . . . . . . . . . . . Repair Stations . | . . . . . . . . . . . . . . Recycling Units . | . . . . . . . . . . . . . . Scanalyzers . | . . . . . . . . . . . . . . Garrison Access . | . . . . . . . . . . . . . . Data Cores Recovered 5 | . . 2 . . . . . 2 . . . 1 . Used 1 | . . . . . . . . 1 . . . . . Hacking Detections 21 | . 1 4 1 1 . . 2 4 4 1 1 . 2 Full Trace Events 5 | . . 3 . . . . . . 2 . . . . Feedback Events . | . . . . . . . . . . . . . . Feedback Blocked . | . . . . . . . . . . . . . . Robot Schematics Acquired 7 | . . . . . . 7 . . . . . . . Robots Built . | . . . . . . . . . . . . . . Matter . | . . . . . . . . . . . . . . Time . | . . . . . . . . . . . . . . Total Robot Build Rating . | . . . . . . . . . . . . . . Part Schematics Acquired 16 | . . 4 5 . . 6 . . . . . . 1 Parts Built . | . . . . . . . . . . . . . . Matter . | . . . . . . . . . . . . . . Time . | . . . . . . . . . . . . . . Total Part Build Rating . | . . . . . . . . . . . . . . Parts Repaired 4 | . . 1 . . . . . 1 2 . . . . Time 197 | . . 32 . . . . . 95 70 . . . . Parts Recycled . | . . . . . . . . . . . . . . Recycled Matter . | . . . . . . . . . . . . . . Retrieved Matter . | . . . . . . . . . . . . . . Retrieved Components . | . . . . . . . . . . . . . . Parts Scanalyzed 11 | . . 5 5 . . . . . . . . . 1 Part Schematics Acquired 10 | . . 4 5 . . . . . . . . . 1 Parts Damaged . | . . . . . . . . . . . . . . Bothacking | -11 -10 -9 -8 -7 -7 -7 -6 -6 -5 -4 -4 -3 -2 ------------ Run | Scr Mat Mat Mat Fac Low Dat Pro Fac Fac Fac Ext Res Res Used RIF Installer . | . . . . . . . . . . . . . . Robots Hacked 2 | . . . . 2 . . . . . . . . . Non-combat 2 | . . . . 2 . . . . . . . . . Combat . | . . . . . . . . . . . . . . Robot Hacks Applied 2 | . . . . 2 . . . . . . . . . parse_system 1 | . . . . 1 . . . . . . . . . find_chute 1 | . . . . 1 . . . . . . . . . Relay Couplers Released . | . . . . . . . . . . . . . . Robots Rewired . | . . . . . . . . . . . . . . Allies Hacked . | . . . . . . . . . . . . . . Hacks Repelled . | . . . . . . . . . . . . . . Allies | -11 -10 -9 -8 -7 -7 -7 -6 -6 -5 -4 -4 -3 -2 -------- Run | Scr Mat Mat Mat Fac Low Dat Pro Fac Fac Fac Ext Res Res Total Allies 6 | . . . . . . . 1 . 3 . 2 . . Largest Group 3 | . . . . . . . 1 . 3 . 2 . . Highest-Rated Group 185 | . . . . . . . 94 . 93 . 185 . . Highest-Rated Ally 156 | . . . . . . . 94 . 31 . 156 . . Total Orders . | . . . . . . . . . . . . . . Ally Attacks 74 | . . . . . . . 18 . 25 . 31 . . Total Damage 1814 | . . . . . . . 841 . 313 . 660 . . Kills 7 | . . . . . . . 1 . 2 . 4 . . Allies Corrupted . | . . . . . . . . . . . . . . Allies Melted 1 | . . . . . . . 1 . . . . . . Intel | -11 -10 -9 -8 -7 -7 -7 -6 -6 -5 -4 -4 -3 -2 ------- Run | Scr Mat Mat Mat Fac Low Dat Pro Fac Fac Fac Ext Res Res Robot Analysis Total 1 | . . . . . . . . . 1 . . . . Derelict Logs Recovered 4 | . . . . . 1 . 3 . . . . . . Drone Launches . | . . . . . . . . . . . . . . Drone Recoveries . | . . . . . . . . . . . . . . Exploration | -11 -10 -9 -8 -7 -7 -7 -6 -6 -5 -4 -4 -3 -2 ------------- Run | Scr Mat Mat Mat Fac Low Dat Pro Fac Fac Fac Ext Res Res Turns Passed 8260 | 87 978 1517 731 791 235 38 380 834 918 118 372 467 794 Spaces Moved 7273 | 59 823 1574 440 488 334 94 373 955 945 116 378 297 397 Core 5 | 2 3 . . . . . . . . . . . . Treads 5 | 5 . . . . . . . . . . . . . Legs 515 | 52 463 . . . . . . . . . . . . Wheels . | . . . . . . . . . . . . . . Hover 6747 | . 356 1574 440 488 334 94 373 955 945 116 378 297 397 Flight 1 | . 1 . . . . . . . . . . . . Fastest Speed 38 | 50 48 48 40 40 40 40 40 38 42 48 48 48 48 Average Speed 53 | 121 90 51 41 40 40 40 40 41 43 48 48 83 76 Slowest Speed 160 | 160 150 112 48 40 40 40 43 42 48 48 48 110 110 Overloaded Moves . | . . . . . . . . . . . . . . Propulsion Burnouts . | . . . . . . . . . . . . . . Robots Hopped . | . . . . . . . . . . . . . . Cave-ins Triggered 3 | . 1 . . . . . . . . . 2 . . Exploration Rate (%) 38 | 4 91 85 46 13 40 76 43 27 28 5 52 10 13 Regions Visited 13 Branch Regions 4 Pre-discovered Areas 1 | . . . . . . 1 . . . . . . . Known Exits Taken 12 | 1 1 1 1 1 . 1 1 1 1 1 1 1 . Unknown Exits Taken 1 | . . . . . 1 . . . . . . . . Scrap Searched 1 | . . . . . 1 . . . . . . . . Spaces Dug 8 | . 8 . . . . . . . . . . . . Terrain Destroyed 481 | . 25 35 . . . . 13 . 68 3 161 138 38 Melee 8 | . 8 . . . . . . . . . . . . Projectile 47 | . . . . . . . . . 13 . 5 15 14 AOE 426 | . 17 35 . . . . 13 . 55 3 156 123 24 Terrain Rammed . | . . . . . . . . . . . . . . Walls Destroyed . | . . . . . . . . . . . . . . Machines Disabled . | . . . . . . . . . . . . . . Actions | -11 -10 -9 -8 -7 -7 -7 -6 -6 -5 -4 -4 -3 -2 --------- Run | Scr Mat Mat Mat Fac Low Dat Pro Fac Fac Fac Ext Res Res Total 10785 | 68 1000 2126 876 1036 430 93 562 1364 1336 175 496 443 780 Wait 2671 | . 108 334 345 486 95 . 149 354 286 59 70 93 292 Move 7258 | 58 821 1573 439 487 333 93 372 954 944 115 376 296 397 Hop . | . . . . . . . . . . . . . . Pick Up 43 | . 7 13 8 4 . . . 5 1 . 2 2 1 Fast Attach 45 | 5 7 15 4 . . . 3 6 3 . 1 1 . Attach 21 | . 4 4 4 2 . . 2 1 2 . . 1 1 Detach 8 | . 2 3 1 . . . 1 . . . . 1 . Swap 55 | . 2 14 7 4 . . 3 7 9 . 2 3 4 Drop 73 | 1 5 21 10 5 . . . 13 9 . 2 4 3 Fire 393 | 4 33 103 51 23 2 . 16 16 46 1 28 29 41 Melee 8 | . 8 . . . . . . . . . . . . Ram 18 | . . 11 2 . . . . 1 1 . 1 . 2 Kick 2 | . 2 . . . . . . . . . . . . Crush . | . . . . . . . . . . . . . . Escape Stasis 25 | . 1 . . 6 . . . 6 . . 12 . . Rewire . | . . . . . . . . . . . . . . Trap . | . . . . . . . . . . . . . . Miscellaneous 165 | . . 35 5 19 . . 16 1 35 . 2 13 39 Route ------- -11/Scrapyard -10/Materials (discovered 4 exits: *Mat x3 / *Min) -9/Materials (discovered 4 exits: *Mat x3 / *Min) -8/Materials (discovered 3 exits: *Fac x2 / *Sto) -7/Factory -7/Lower Caves (discovered 3 exits: Low / [*Zio] / *Dat) -7/Data Miner -6/Proximity Caves -6/Factory -5/Factory (discovered 4 exits: *Fac x2 / *Upp x2) -4/Factory -4/Extension -3/Research -2/Research History --------- Turn | Location | Event 9 | -11/Scrapyard | Identified exit to Materials 9 | -11/Scrapyard | Discovered exit to Materials (range 15) 88 | -11/Scrapyard | Entered Materials 145 | -10/Materials | Identified exit to Mines 145 | -10/Materials | Discovered exit to Mines (range 15) 323 | -10/Materials | Build established: Hacker-Mutant 406 | -10/Materials | Identified exit to Materials 406 | -10/Materials | Discovered exit to Materials (range 7) 447 | -10/Materials | Upgraded with Propulsion slot (x3) 447 | -10/Materials | Upgraded with Utility slot (x2) 447 | -10/Materials | Upgraded with Weapon slot (x1) 765 | -10/Materials | Discovered exit to Materials (range 3) 840 | -10/Materials | Discovered exit to Materials (range 4) 891 | -10/Materials | Crushed by falling debris 892 | -10/Materials | Core integrity fell below 50% 1066 | -10/Materials | Entered another Materials area 1067 | -9/Materials | Core integrity fell below 50% 1068 | -9/Materials | Reached level 2 1068 | -9/Materials | Reached level 3 1073 | -9/Materials | Upgraded with Power slot (x1) 1073 | -9/Materials | Upgraded with Utility slot (x1) 1073 | -9/Materials | Upgraded with Weapon slot (x1) 1118 | -9/Materials | Reached level 4 1243 | -9/Materials | Identified exit to Mines 1243 | -9/Materials | Discovered exit to Mines (range 7) 1426 | -9/Materials | Upgraded with Utility slot (x1) 1513 | -9/Materials | Reached level 5 1730 | -9/Materials | Identified exit to Materials 1730 | -9/Materials | Discovered exit to Materials (range 16) 1814 | -9/Materials | Reached level 6 1945 | -9/Materials | Upgraded with Utility slot (x1) 1968 | -9/Materials | Build established: Hacker-Skirmisher 2187 | -9/Materials | Discovered exit to Materials (range 17) 2486 | -9/Materials | Repaired Imp. Hover Unit 2583 | -9/Materials | Entered another Materials area 2585 | -8/Materials | Reached level 7 2585 | -8/Materials | Reached level 8 2587 | -8/Materials | Upgraded with Propulsion slot (x1) 2787 | -8/Materials | Build established: Hacker-Scout 2816 | -8/Materials | Identified exit to Factory 2816 | -8/Materials | Discovered exit to Factory (range 15) 2978 | -8/Materials | Reached level 9 3022 | -8/Materials | Identified exit to Storage 3022 | -8/Materials | Discovered exit to Storage (range 15) 3214 | -8/Materials | Reached level 10 3276 | -8/Materials | Discovered exit to Factory (range 17) 3298 | -8/Materials | Upgraded with Utility slot (x1) 3314 | -8/Materials | Entered Factory 3316 | -7/Factory | Reached level 11 3319 | -7/Factory | Upgraded with Utility slot (x1) 4053 | -7/Factory | Identified exit to Lower Caves 4053 | -7/Factory | Discovered exit to Lower Caves (range 14) 4105 | -7/Factory | Entered Lower Caves 4107 | -7/Lower Caves | Reached level 12 4113 | -7/Lower Caves | A Derelict revealed a hidden shortcut to a safe place 4178 | -7/Lower Caves | A Derelict revealed a hidden shortcut to meet someone special 4283 | -7/Lower Caves | Identified exit to Lower Caves 4340 | -7/Lower Caves | Entered Data Miner 4340 | -7/Data Miner | Identified exit to Proximity Caves 4340 | -7/Data Miner | Discovered exit to Proximity Caves (range 6) 4348 | -7/Data Miner | Met Data Miner 4362 | -7/Data Miner | Learned location of Section 7 (-2) 4362 | -7/Data Miner | Acquired the access code to Warlord's prototype stash 4369 | -7/Data Miner | Received God Mode back door access code from Data Miner 4378 | -7/Data Miner | Entered Proximity Caves 4380 | -6/Proximity Caves | Reached level 13 4380 | -6/Proximity Caves | Upgraded with Utility slot (x1) 4536 | -6/Proximity Caves | Spotted B-75 Beast 4538 | -6/Proximity Caves | Escorted by Enhanced Grunt 4564 | -6/Proximity Caves | Destroyed B-75 Beast 4573 | -6/Proximity Caves | Learned Factory terminal intel 4579 | -6/Proximity Caves | Attracted the attention of an 0b10 checkpoint 4612 | -6/Proximity Caves | Learned 4 Factory zone layouts 4625 | -6/Proximity Caves | Spotted B-75 Beast 4626 | -6/Proximity Caves | Entered a huge 0b10 base via the front door 4674 | -6/Proximity Caves | Reached level 14 4674 | -6/Proximity Caves | Allies destroyed B-75 Beast 4715 | -6/Proximity Caves | Derelicts attacked a huge 0b10 base 4735 | -6/Proximity Caves | Identified exit to Factory 4735 | -6/Proximity Caves | Discovered exit to Factory (range 17) 4758 | -6/Proximity Caves | Entered Factory 4760 | -6/Factory | Loaded intel: 20 terminal locations 4760 | -6/Factory | Reached level 15 4762 | -6/Factory | Upgraded with Utility slot (x1) 5449 | -6/Factory | Repaired Imp. Medium Armor Plating 5505 | -6/Factory | Identified exit to Factory 5505 | -6/Factory | Discovered exit to Factory (range 6) 5592 | -6/Factory | Entered another Factory area 5593 | -5/Factory | Identified exit to Upper Caves 5594 | -5/Factory | Reached level 16 5691 | -5/Factory | Repaired Imp. Terrain Scanner 5743 | -5/Factory | Reached level 17 5746 | -5/Factory | Allied Derelicts emerged from ambush trap array 5770 | -5/Factory | Destroyed 7 combat bots 5802 | -5/Factory | Upgraded with Weapon slot (x1) 6095 | -5/Factory | Discovered exit to Upper Caves (range 9) 6153 | -5/Factory | Repaired Imp. Utility Shielding 6222 | -5/Factory | Spotted B-75 Beast 6250 | -5/Factory | Reached level 18 6250 | -5/Factory | Destroyed B-75 Beast 6333 | -5/Factory | Identified exit to Factory 6333 | -5/Factory | Discovered exit to Factory (range 8) 6390 | -5/Factory | Discovered exit to Factory (range 15) 6421 | -5/Factory | Core integrity fell below 50% 6463 | -5/Factory | Reached level 19 6508 | -5/Factory | Upgraded with Utility slot (x1) 6510 | -5/Factory | Entered another Factory area 6512 | -4/Factory | Reached level 20 6624 | -4/Factory | Identified exit to Extension 6624 | -4/Factory | Discovered exit to Extension (range 10) 6628 | -4/Factory | Entered Extension 6675 | -4/Extension | Rescued A7 6686 | -4/Extension | Rescued a captive Derelict 6746 | -4/Extension | Reached level 21 6750 | -4/Extension | Upgraded with Power slot (x1) 6830 | -4/Extension | Spotted B-86 Titan 6844 | -4/Extension | Spotted B-86 Titan 6854 | -4/Extension | Destroyed B-86 Titan 6896 | -4/Extension | Crushed by falling debris 6896 | -4/Extension | Core integrity fell below 50% 6897 | -4/Extension | Destroyed B-86 Titan 6913 | -4/Extension | Identified exit to Research 6913 | -4/Extension | Discovered exit to Research (range 9) 6951 | -4/Extension | Reached level 22 6953 | -4/Extension | Disrupted transfer network 6986 | -4/Extension | Crushed by falling debris 6987 | -4/Extension | Core integrity fell below 20% 7000 | -4/Extension | Entered Research 7001 | -3/Research | Core integrity fell below 50% 7002 | -3/Research | Reached level 23 7073 | -3/Research | Build established: Generator-Scout 7208 | -3/Research | Reached level 24 7234 | -3/Research | Core integrity fell below 20% 7250 | -3/Research | First assault squad dispatched 7340 | -3/Research | Spotted B-86 Titan 7354 | -3/Research | Destroyed B-86 Titan 7448 | -3/Research | Identified exit to Research 7448 | -3/Research | Discovered exit to Research (range 6) 7467 | -3/Research | Entered another Research area 7468 | -2/Research | Core integrity fell below 50% 7469 | -2/Research | Reached level 25 7469 | -2/Research | Reached level 26 7644 | -2/Research | Garrison activated, responded to threat 7679 | -2/Research | Build established: Generator-Gunner 7698 | -2/Research | Core integrity fell below 20% 7783 | -2/Research | Reached level 27 7787 | -2/Research | Upgraded with Utility slot (x1) 7926 | -2/Research | Garrison activated, responded to threat 8091 | -2/Research | Build established: Generator-Scout 8141 | -2/Research | Spotted B-90 Cyclops 8190 | -2/Research | Reached level 28 8244 | -2/Research | First assault squad dispatched 8261 | -2/Research | Destroyed by H-88 Terminator with KE Penetrator Last Messages --------------- 08251_ H-88 Terminator destroyed. 08251_ K-01 Serf destroyed. 08252_ Slug penetrates Wall. 08252_ Terminal disabled. 08252_ Slug penetrates Wall. 08253_ K-01 Serf collects debris. 08254_ Destroyed Hvy. Laser. 08255_ U-05 Engineer builds a Wall. 08255_ Slug penetrates Wall. 08258_ K-01 Serf collects debris. 08258_ G-73 Enforcer destroyed. 08258_ Destroyed Lgt. Ion Engine. 08258_ U-05 Engineer destroyed. 08258_ Slug penetrates Wall. 08258_ Penetrated by Slug. 08259_ K-01 Serf collects debris. 08260_ U-05 Engineer builds a Door. 08261_ K-01 Serf collects debris. 08261_ Slug penetrates Wall. [Achievement: 10k Club] Map ----- +----------------------------------------------------+ | ?????????????????????????????????????????????????? | | ?????????????????????????????????????????????????? | | ?????????????????????????????????????????????????? | | ?????????????????????????????????????????????????? | | ?????????????????????????????????????????????????? | | ??????????????????????????? ???????????????????? | | ????????????????????????? # #?????????????????? | | ???????????????????????? # #? ???????????????? | | ???????????????????? ?? ? #?? ??????????????? | | ?????????????????? ? ? ?# ####??????????????? | | ???????????????? """ ?# ? ???????????? | | ????????????????"? """ + ?? ????????????? | | ???????????????"" ""?? # % ? ????????? | | ????????????????? ?"""? # %[ ??????????? | | ??????????????""" ?""" # =###?##+?###???????? | | ?????????????? "" ?? # ##? ? ????????? | | ????????????## ?? ? # =% ### ? ?? ???????? | | ????????????## ? ? # = ### ?? ? #??????? | | ????????????#####?##?###### ##??? ?? ???????? | | ??????????#################= =%###? ? ???????? | | ??????????####### #%*=*### ?"""? #??????? | | ??????????####### #![=%#?# ?"""" #??????? | | ??????????####### #%!*!### """"? ???????? | | ?????????######## %#|!= ### ?"" #??????? | | ????????####??### ""T""=[+!== ############??????? | | ?????????#??#?### """" [@#! ?????? | | ?????????#?#?#### =# ?????? | | ???????????###### # ##??????? | | ????????################### """ #???????? | | ???????# # """ #???????? | | ???????# # """ #???????? | | ???????# # #???????? | | ???????# + #?#####?? | | ?????### # / #? | | ?????#?# #%" ###### #? | | ???????# #!####### #? | | ???????# #!####### #? | | ???????####################%######### !! !]!#? | | ???#?????# ####|######### !! !] #? | | ????#???## ! ####!# ## ]! #? | | ????###### ! #### # ## #? | | ????#???## ## #%# ## ! #? | | ?#?##??### #"*" ! ## ?? ! #? | | ????##??## ! %+**% " "# + | | ??#???#?########+#######"!%"" ######### ## | | ???#??### ##### "############### # | | ????????# ############ """ # # | | ? ??##??# + """ # # | | ?????#?## ############ """ # # | | ????????# ################### # # | +----------------------------------------------------+ Best States ------------- Heat Dissipation 134 Energy Generation 59 Energy Capacity 915 Matter Stores 400 Matter Capacity 400 Sight Range 17 Robot Scan Range 28 Terrain Scan Range 16 Terrain Scan Density 385 ECM Strength 3 Additional Mass Support 9 Base Temperature (-) 150 Armor Coverage 600 Resistance: KI 35 Resistance: TH 55 Resistance: EX 35 Resistance: EM 35 Resistance: I 35 Resistance: S 35 Resistance: P 35 Propulsion Shielding 33 Utility Shielding 66 Evasion (%) 57 Targeting Accuracy 5 Armor Integrity Analysis 50 Recoil Reduction 1 Particle Charging 20 Kinecelleration 40 Offensive Hacking 20 Item Schematics ----------------- Imp. Hover Unit | -9/Materials | Scanalyzed Hover Unit | -9/Materials | Scanalyzed Rocket Launcher | -9/Materials | Scanalyzed Adv. Beam Cannon | -9/Materials | Scanalyzed Hcp. Battery | -8/Materials | Scanalyzed Imp. Light Armor Plating | -8/Materials | Scanalyzed Adv. Weight Redist. System | -8/Materials | Scanalyzed Cryofiber Web | -8/Materials | Scanalyzed Missile Launcher | -8/Materials | Scanalyzed Combat Drone Bay | -7/Data Miner | Free Lgt. Regenerative Plating | -7/Data Miner | Free Exp. Terrain Scanner | -7/Data Miner | Free Exp. Terrain Scan Processor | -7/Data Miner | Free Exp. Targeting Computer | -7/Data Miner | Free Tactical Coordination Suite | -7/Data Miner | Free Micro-nuke Launcher | -2/Research | Scanalyzed Robot Schematics ------------------ S-27 Virus | -7/Data Miner | Free G-50 Soldier | -7/Data Miner | Free G-67 Veteran | -7/Data Miner | Free H-66 Slayer | -7/Data Miner | Free P-70 Sage | -7/Data Miner | Free I-36 Angel | -7/Data Miner | Free I-47 Archangel | -7/Data Miner | Free Fabricated ------------ Nothing Alien Tech Used ----------------- None Achievements -------------- 10k Club Dangerous Findings Dynamic Key Giant Slayer I'm Back, Baby! It's Just You Knowing Is Half The Battle Omniscient Cartographer Preemptive Strike Prison Break Respectable Loadout Serviceable Loadout The Oracle Unlikely Earthworm Challenges ------------ None RPGLIKE | -11 -10 -9 -8 -7 -7 -7 -6 -6 -5 -4 -4 -3 -2 --------- Run | Scr Mat Mat Mat Fac Low Dat Pro Fac Fac Fac Ext Res Res Levels Raised 27 | . . 5 4 1 1 . 2 1 4 1 2 2 4 XP Earned 46989 | 6000 1005 7982 5061 2300 675 650 2012 1860 5495 1500 3149 3919 5381 XP Spent 46490 | . 5970 7355 5115 2470 . . 3035 2900 6150 425 2290 4680 6100 Upgrades 83 | . 13 14 7 2 . . 4 1 4 2 6 22 8 Power Slot 2 | . . 1 . . . . . . . . 1 . . Propulsion Slot 4 | . 3 . 1 . . . . . . . . . . Utility Slot 11 | . 2 3 1 1 . . 1 1 1 . . . 1 Weapon Slot 3 | . 1 1 . . . . . . 1 . . . . Core Integrity 22 | . . 1 . . . . 1 . . . 4 14 2 Heat Dissipation 13 | . 2 4 . 1 . . 2 . . . . . 4 Energy Generation 4 | . . 2 . . . . . . 2 . . . . Matter Storage 2 | . . . . . . . . . . 2 . . . Mass Support 3 | . 1 . . . . . . . . . . 1 1 Inventory Capacity 5 | . 3 . 1 . . . . . . . 1 . . Sight Range 1 | . . 1 . . . . . . . . . . . Sensor Range 6 | . 1 . 1 . . . . . . . . 4 . Terrain Scan Density 3 | . . . 2 . . . . . . . . 1 . Ranged Accuracy 4 | . . 1 1 . . . . . . . . 2 . Protomatter Created 2664 | . 79 402 89 242 . . 81 42 414 . 396 392 527 Integrity Restored 3561 | . . 752 93 415 . . 331 23 777 . 39 261 870 Core 3360 | . . 752 93 367 . . 310 23 645 . 39 261 870 Parts 201 | . . . . 48 . . 21 . 132 . . . . Protomatter Decayed 1272 | . 79 135 58 99 . . 61 34 228 . 373 143 62 Game ------ Seed PrecisionWeldingStorm Manual? 0 Play Time 02:37:17 Cumulative 10.4 hours Start 2021.08.21 @ 18:15:32 End 2021.08.22 @ 17:24:18 Sessions 5 Manual Loads 0 Difficulty Explorer Special Mode Winter2019/RPGLIKE Game No. 10 Rogue 0 Adventurer 9 Explorer 1 Win Type - Total 0 Types 0/0/0/0/0/0/0/0/0 Lore% 17 Gallery% 16 Achievement% 17 Wizard Run 0 Options --------- ASCII 0 Keyboard 0 Movement Mouse Keybinds 0 Fullscreen 1 Font 18/X11 Map View 76x50 Tactical HUD 1 Map Filters NONE Filters NONE Steam 1 RUN: 31567bb0-1dd5-4ffa-aa08-8b13101483db